[Event "Titled Tuesday Blitz March 28 Late 2023"]
[White "Mekhane, Adam"]
[Black "Horton, Andrew P"]
[WhiteFideId "36050601"]
[BlackFideId "424269"]
[WhiteElo "2177"]
[BlackElo "2401"]
[Result "0-1"]
[Round "02"]
[TimeControl "180+2"]
[Date "2023.03.28"]
[WhiteClock "0:00:03"]
[BlackClock "0:00:13"]

1. e4 {[%clk 0:02:59]}  e5 {[%clk 0:02:58]} 2. Nf3 {[%clk 0:02:59]}  Nc6 {[%clk 0:02:58]} 3. Bb5 {[%clk 0:02:59]}  a6 {[%clk 0:02:57]} 4. Ba4 {[%clk 0:02:59]}  d6 {[%clk 0:02:58]} 5. O-O {[%clk 0:02:57]}  Bd7 {[%clk 0:02:58]} 6. d4 {[%clk 0:02:53]}  Nf6 {[%clk 0:02:50]} 7. Re1 {[%clk 0:02:37]}  exd4 {[%clk 0:02:09]} 8. Nxd4 {[%clk 0:02:24]}  Nxd4 {[%clk 0:02:06]} 9. Bxd7+ {[%clk 0:02:23]}  Nxd7 {[%clk 0:02:05]} 10. Qxd4 {[%clk 0:02:24]}  Qf6 {[%clk 0:01:59]} 11. Be3 {[%clk 0:02:14]}  Be7 {[%clk 0:01:55]} 12. Nc3 {[%clk 0:02:14]}  Qxd4 {[%clk 0:01:49]} 13. Bxd4 {[%clk 0:02:14]}  O-O {[%clk 0:01:50]} 14. Nd5 {[%clk 0:02:10]}  Bd8 {[%clk 0:01:50]} 15. Rad1 {[%clk 0:02:09]}  Re8 {[%clk 0:01:48]} 16. a4 {[%clk 0:02:07]}  Rc8 {[%clk 0:01:45]} 17. g3 {[%clk 0:02:00]}  Re6 {[%clk 0:01:41]} 18. Nf4 {[%clk 0:01:50]}  Re8 {[%clk 0:01:40]} 19. Nd5 {[%clk 0:01:50]}  Nf8 {[%clk 0:01:38]} 20. Kg2 {[%clk 0:01:43]}  Ne6 {[%clk 0:01:38]} 21. Be3 {[%clk 0:01:40]}  Be7 {[%clk 0:01:28]} 22. h4 {[%clk 0:01:38]}  h5 {[%clk 0:01:27]} 23. c3 {[%clk 0:01:25]}  Bf8 {[%clk 0:01:27]} 24. a5 {[%clk 0:01:22]}  Rcd8 {[%clk 0:01:26]} 25. f4 {[%clk 0:01:02]}  Rd7 {[%clk 0:01:19]} 26. Kf3 {[%clk 0:00:58]}  Nd8 {[%clk 0:01:18]} 27. Bd4 {[%clk 0:00:53]}  Nc6 {[%clk 0:01:17]} 28. b4 {[%clk 0:00:50]}  Ne7 {[%clk 0:01:13]} 29. Nxe7+ {[%clk 0:00:26]}  Bxe7 {[%clk 0:01:14]} 30. e5 {[%clk 0:00:26]}  Red8 {[%clk 0:01:11]} 31. exd6 {[%clk 0:00:25]}  Bxd6 {[%clk 0:01:12]} 32. Bf2 {[%clk 0:00:21]}  f6 {[%clk 0:01:09]} 33. Rd3 {[%clk 0:00:20]}  Kf7 {[%clk 0:01:09]} 34. Red1 {[%clk 0:00:20]}  Ke6 {[%clk 0:01:09]} 35. Ke4 {[%clk 0:00:20]}  f5+ {[%clk 0:01:08]} 36. Kf3 {[%clk 0:00:20]}  g6 {[%clk 0:01:07]} 37. Bd4 {[%clk 0:00:21]}  Be7 {[%clk 0:01:04]} 38. Re3+ {[%clk 0:00:21]}  Kf7 {[%clk 0:01:05]} 39. Rde1 {[%clk 0:00:21]}  Bf8 {[%clk 0:00:58]} 40. Re6 {[%clk 0:00:21]}  Rd6 {[%clk 0:00:59]} 41. Rxd6 {[%clk 0:00:20]}  Bxd6 {[%clk 0:00:59]} 42. Be5 {[%clk 0:00:17]}  Re8 {[%clk 0:00:57]} 43. Re3 {[%clk 0:00:13]}  Rd8 {[%clk 0:00:47]} 44. Rd3 {[%clk 0:00:11]}  Ke6 {[%clk 0:00:44]} 45. Bxd6 {[%clk 0:00:11]}  Rxd6 {[%clk 0:00:44]} 46. Re3+ {[%clk 0:00:07]}  Kd7 {[%clk 0:00:41]} 47. Ke2 {[%clk 0:00:06]}  Rc6 {[%clk 0:00:36]} 48. Kd3 {[%clk 0:00:06]}  b6 {[%clk 0:00:34]} 49. Re5 {[%clk 0:00:06]}  Rd6+ {[%clk 0:00:33]} 50. Ke3 {[%clk 0:00:06]}  Rd1 {[%clk 0:00:29]} 51. Ke2 {[%clk 0:00:06]}  Rg1 {[%clk 0:00:28]} 52. Re3 {[%clk 0:00:06]}  Ra1 {[%clk 0:00:22]} 53. axb6 {[%clk 0:00:06]}  cxb6 {[%clk 0:00:23]} 54. Rd3+ {[%clk 0:00:07]}  Ke7 {[%clk 0:00:22]} 55. Re3+ {[%clk 0:00:06]}  Kf7 {[%clk 0:00:22]} 56. Rd3 {[%clk 0:00:06]}  a5 {[%clk 0:00:21]} 57. bxa5 {[%clk 0:00:06]}  bxa5 {[%clk 0:00:22]} 58. Rd6 {[%clk 0:00:06]}  Ra2+ {[%clk 0:00:21]} 59. Kf3 {[%clk 0:00:06]}  Rc2 {[%clk 0:00:20]} 60. Rc6 {[%clk 0:00:04]}  a4 {[%clk 0:00:20]} 61. Ke3 {[%clk 0:00:03]}  a3 {[%clk 0:00:20]} 62. Kd3 {[%clk 0:00:02]}  Rg2 {[%clk 0:00:20]} 63. Ra6 {[%clk 0:00:02]}  Rxg3+ {[%clk 0:00:21]} 64. Kd4 {[%clk 0:00:02]}  Rf3 {[%clk 0:00:20]} 65. Rxa3 {[%clk 0:00:02]}  Rxf4+ {[%clk 0:00:20]} 66. Ke5 {[%clk 0:00:02]}  Re4+ {[%clk 0:00:21]} 67. Kd5 {[%clk 0:00:02]}  Rxh4 {[%clk 0:00:21]} 68. Ra7+ {[%clk 0:00:01]}  Kf6 {[%clk 0:00:22]} 69. c4 {[%clk 0:00:02]}  Rh1 {[%clk 0:00:22]} 70. c5 {[%clk 0:00:02]}  Rd1+ {[%clk 0:00:22]} 71. Kc6 {[%clk 0:00:01]}  h4 {[%clk 0:00:23]} 72. Kb7 {[%clk 0:00:01]}  Rb1+ {[%clk 0:00:22]} 73. Kc7 {[%clk 0:00:01]}  Rc1 {[%clk 0:00:22]} 74. c6 {[%clk 0:00:02]}  Kg5 {[%clk 0:00:20]} 75. Kd7 {[%clk 0:00:02]}  Kg4 {[%clk 0:00:20]} 76. c7 {[%clk 0:00:03]}  h3 {[%clk 0:00:20]} 77. Ra6 {[%clk 0:00:03]}  Rxc7+ {[%clk 0:00:17]} 78. Kxc7 {[%clk 0:00:04]}  g5 {[%clk 0:00:17]} 79. Rh6 {[%clk 0:00:04]}  Kg3 {[%clk 0:00:17]} 80. Kd6 {[%clk 0:00:05]}  f4 {[%clk 0:00:14]} 81. Ke5 {[%clk 0:00:05]}  f3 {[%clk 0:00:14]} 82. Ke4 {[%clk 0:00:04]}  f2 {[%clk 0:00:14]} 83. Rh5 {[%clk 0:00:01]}  f1=Q {[%clk 0:00:13]} 84. Rxg5+ {[%clk 0:00:01]}  Kh4 {[%clk 0:00:13]} 85. Rf5 {[%clk 0:00:02]}  Qxf5+ {[%clk 0:00:12]} 86. Kxf5 {[%clk 0:00:03]}  Kg3 {[%clk 0:00:13]} 0-1


[Site "https://www.chess.com"]

[Event "Titled Tuesday Blitz March 28 Late 2023"]
[White "Zavortink, Matt"]
[Black "Herrera Reyes, Jose Antonio"]
[WhiteFideId "2034263"]
[BlackFideId "2274914"]
[WhiteElo "2406"]
[BlackElo "2273"]
[Result "0-1"]
[Round "02"]
[TimeControl "180+2"]
[Date "2023.03.28"]
[WhiteClock "0:00:16"]
[BlackClock "0:00:58"]

1. c4 {[%clk 0:02:41]}  Nf6 {[%clk 0:02:59]} 2. Nc3 {[%clk 0:02:41]}  c5 {[%clk 0:02:59]} 3. Nf3 {[%clk 0:02:41]}  b6 {[%clk 0:02:59]} 4. d4 {[%clk 0:02:37]}  cxd4 {[%clk 0:02:59]} 5. Nxd4 {[%clk 0:02:38]}  Bb7 {[%clk 0:03:00]} 6. f3 {[%clk 0:02:34]}  e6 {[%clk 0:03:00]} 7. e4 {[%clk 0:02:34]}  Be7 {[%clk 0:03:00]} 8. Be3 {[%clk 0:02:33]}  O-O {[%clk 0:02:58]} 9. Be2 {[%clk 0:02:30]}  a6 {[%clk 0:02:57]} 10. O-O {[%clk 0:02:29]}  Qc7 {[%clk 0:02:57]} 11. Rc1 {[%clk 0:02:23]}  d6 {[%clk 0:02:57]} 12. Qd2 {[%clk 0:02:18]}  Nbd7 {[%clk 0:02:57]} 13. Kh1 {[%clk 0:02:05]}  Rac8 {[%clk 0:02:56]} 14. a3 {[%clk 0:02:03]}  Qb8 {[%clk 0:02:56]} 15. b4 {[%clk 0:01:55]}  Rfe8 {[%clk 0:02:56]} 16. Rfd1 {[%clk 0:01:49]}  Bf8 {[%clk 0:02:55]} 17. Bf2 {[%clk 0:01:47]}  Ne5 {[%clk 0:02:55]} 18. Na4 {[%clk 0:01:43]}  Ned7 {[%clk 0:02:41]} 19. Rc2 {[%clk 0:01:35]}  d5 {[%clk 0:02:38]} 20. cxd5 {[%clk 0:01:19]}  Rxc2 {[%clk 0:02:36]} 21. Qxc2 {[%clk 0:01:19]}  exd5 {[%clk 0:02:36]} 22. exd5 {[%clk 0:01:10]}  Nxd5 {[%clk 0:02:36]} 23. Bd3 {[%clk 0:01:03]}  N7f6 {[%clk 0:02:35]} 24. Nf5 {[%clk 0:00:59]}  Rc8 {[%clk 0:02:20]} 25. Qd2 {[%clk 0:00:57]}  Nf4 {[%clk 0:01:58]} 26. Bg3 {[%clk 0:00:49]}  N6h5 {[%clk 0:01:58]} 27. Nxb6 {[%clk 0:00:32]}  Rd8 {[%clk 0:01:57]} 28. Nh6+ {[%clk 0:00:32]}  gxh6 {[%clk 0:01:54]} 29. Bxh7+ {[%clk 0:00:32]}  Kxh7 {[%clk 0:01:54]} 30. Qxd8 {[%clk 0:00:33]}  Qe5 {[%clk 0:01:02]} 31. Qxf8 {[%clk 0:00:22]}  Qe2 {[%clk 0:00:58]} 32. Qxf7+ {[%clk 0:00:20]}  Ng7 {[%clk 0:00:59]} 33. Rg1 {[%clk 0:00:17]}  Nxg2 {[%clk 0:00:59]} 34. Rxg2 {[%clk 0:00:17]}  Qf1+ {[%clk 0:00:57]} 35. Rg1 {[%clk 0:00:17]}  Bxf3+ {[%clk 0:00:58]} 36. Qxf3 {[%clk 0:00:17]}  Qxf3+ {[%clk 0:00:59]} 37. Rg2 {[%clk 0:00:18]}  Nf5 {[%clk 0:00:58]} 38. Nc4 {[%clk 0:00:16]}  Qf1+ {[%clk 0:00:57]} 39. Rg1 {[%clk 0:00:16]}  Qxc4 {[%clk 0:00:58]} 0-1


[Site "https://www.chess.com"]

[Event "Titled Tuesday Blitz March 28 Late 2023"]
[White "Tilicheev, Viacheslav"]
[Black "Bochnicka, Vladimir"]
[WhiteFideId "24114928"]
[BlackFideId "14943450"]
[WhiteElo "2415"]
[BlackElo "2094"]
[Result "0-1"]
[Round "02"]
[TimeControl "180+2"]
[Date "2023.03.28"]
[WhiteClock "0:00:34"]
[BlackClock "0:00:08"]

1. e4 {[%clk 0:03:00]}  c5 {[%clk 0:03:00]} 2. Nf3 {[%clk 0:03:01]}  Nc6 {[%clk 0:03:00]} 3. d4 {[%clk 0:03:00]}  cxd4 {[%clk 0:03:01]} 4. Nxd4 {[%clk 0:03:00]}  e5 {[%clk 0:03:01]} 5. Nb5 {[%clk 0:03:00]}  d6 {[%clk 0:03:02]} 6. N1c3 {[%clk 0:02:59]}  a6 {[%clk 0:03:02]} 7. Na3 {[%clk 0:02:59]}  Be7 {[%clk 0:03:03]} 8. Nc4 {[%clk 0:02:51]}  b5 {[%clk 0:03:03]} 9. Ne3 {[%clk 0:02:50]}  Nf6 {[%clk 0:03:03]} 10. g3 {[%clk 0:02:47]}  O-O {[%clk 0:03:02]} 11. Bg2 {[%clk 0:02:47]}  Rb8 {[%clk 0:03:03]} 12. O-O {[%clk 0:02:47]}  b4 {[%clk 0:02:55]} 13. Ncd5 {[%clk 0:02:47]}  Nxd5 {[%clk 0:02:56]} 14. Nxd5 {[%clk 0:02:47]}  Bg5 {[%clk 0:02:55]} 15. f4 {[%clk 0:02:42]}  exf4 {[%clk 0:02:52]} 16. gxf4 {[%clk 0:02:43]}  Bf6 {[%clk 0:02:31]} 17. Be3 {[%clk 0:02:31]}  Na5 {[%clk 0:01:53]} 18. Nxf6+ {[%clk 0:02:07]}  Qxf6 {[%clk 0:01:52]} 19. Bd4 {[%clk 0:02:08]}  Qh6 {[%clk 0:01:42]} 20. Kh1 {[%clk 0:02:03]}  Nc6 {[%clk 0:01:33]} 21. Rg1 {[%clk 0:02:02]}  Nxd4 {[%clk 0:01:24]} 22. Qxd4 {[%clk 0:02:03]}  Qxf4 {[%clk 0:01:24]} 23. Rad1 {[%clk 0:01:52]}  Be6 {[%clk 0:01:19]} 24. Qxd6 {[%clk 0:01:51]}  Qxd6 {[%clk 0:01:10]} 25. Rxd6 {[%clk 0:01:51]}  a5 {[%clk 0:01:04]} 26. Bf1 {[%clk 0:01:43]}  Rfc8 {[%clk 0:01:02]} 27. Bd3 {[%clk 0:01:43]}  a4 {[%clk 0:00:56]} 28. b3 {[%clk 0:01:41]}  a3 {[%clk 0:00:41]} 29. Kg2 {[%clk 0:01:27]}  Kf8 {[%clk 0:00:41]} 30. Kf3 {[%clk 0:01:26]}  Ke7 {[%clk 0:00:41]} 31. Rd4 {[%clk 0:01:26]}  g6 {[%clk 0:00:42]} 32. Ke3 {[%clk 0:01:25]}  Rc5 {[%clk 0:00:37]} 33. h4 {[%clk 0:01:08]}  Rh5 {[%clk 0:00:31]} 34. Rg5 {[%clk 0:01:09]}  Rxh4 {[%clk 0:00:23]} 35. Rb5 {[%clk 0:01:09]}  Rxb5 {[%clk 0:00:22]} 36. Bxb5 {[%clk 0:01:09]}  Rh2 {[%clk 0:00:17]} 37. Bd3 {[%clk 0:01:09]}  h5 {[%clk 0:00:17]} 38. Rxb4 {[%clk 0:01:09]}  h4 {[%clk 0:00:17]} 39. e5 {[%clk 0:01:04]}  h3 {[%clk 0:00:17]} 40. Rb7+ {[%clk 0:01:05]}  Kf8 {[%clk 0:00:16]} 41. Be4 {[%clk 0:00:53]}  g5 {[%clk 0:00:13]} 42. Ra7 {[%clk 0:00:41]}  g4 {[%clk 0:00:13]} 43. Kf4 {[%clk 0:00:41]}  Rf2+ {[%clk 0:00:11]} 44. Kg3 {[%clk 0:00:41]}  Re2 {[%clk 0:00:11]} 45. Bc6 {[%clk 0:00:41]}  Re3+ {[%clk 0:00:11]} 46. Kf4 {[%clk 0:00:40]}  Rc3 {[%clk 0:00:11]} 47. Be4 {[%clk 0:00:39]}  g3 {[%clk 0:00:09]} 48. Kg5 {[%clk 0:00:33]}  g2 {[%clk 0:00:09]} 49. Kf6 {[%clk 0:00:33]}  g1=Q {[%clk 0:00:08]} 50. Ra8+ {[%clk 0:00:34]}  Rc8 {[%clk 0:00:08]} 0-1


[Site "https://www.chess.com"]

[Event "Titled Tuesday Blitz March 28 Late 2023"]
[White "ArtemDyachuk"]
[Black "EREBUNI91"]
[WhiteElo "2384"]
[BlackElo "2708"]
[Result "0-1"]
[Round "02"]
[TimeControl "180+2"]
[Date "2023.03.28"]
[WhiteClock "0:00:02"]
[BlackClock "0:00:19"]

1. Nf3 {[%clk 0:03:00]}  d5 {[%clk 0:02:59]} 2. e3 {[%clk 0:02:56]}  Nf6 {[%clk 0:02:58]} 3. c4 {[%clk 0:02:56]}  e6 {[%clk 0:02:56]} 4. b3 {[%clk 0:02:53]}  b6 {[%clk 0:02:56]} 5. Bb2 {[%clk 0:02:51]}  Bb7 {[%clk 0:02:56]} 6. Nc3 {[%clk 0:02:46]}  Be7 {[%clk 0:02:56]} 7. Qc2 {[%clk 0:02:46]}  O-O {[%clk 0:02:56]} 8. Be2 {[%clk 0:02:46]}  c5 {[%clk 0:02:56]} 9. cxd5 {[%clk 0:02:44]}  Nxd5 {[%clk 0:02:50]} 10. O-O {[%clk 0:02:38]}  Nc6 {[%clk 0:02:43]} 11. Rad1 {[%clk 0:02:33]}  Rc8 {[%clk 0:02:37]} 12. Qb1 {[%clk 0:02:32]}  Bf6 {[%clk 0:02:35]} 13. Ne4 {[%clk 0:02:11]}  Bxb2 {[%clk 0:02:31]} 14. Neg5 {[%clk 0:02:11]}  Nf6 {[%clk 0:02:08]} 15. Qxb2 {[%clk 0:02:11]}  h6 {[%clk 0:02:08]} 16. Nh3 {[%clk 0:02:06]}  Qe7 {[%clk 0:02:08]} 17. Nf4 {[%clk 0:01:43]}  e5 {[%clk 0:02:02]} 18. Nh3 {[%clk 0:01:35]}  Rfd8 {[%clk 0:02:02]} 19. Bc4 {[%clk 0:01:31]}  Rd7 {[%clk 0:01:59]} 20. Nh4 {[%clk 0:01:19]}  Rcd8 {[%clk 0:01:32]} 21. Nf5 {[%clk 0:01:15]}  Qf8 {[%clk 0:01:32]} 22. f4 {[%clk 0:01:14]}  Re8 {[%clk 0:00:54]} 23. fxe5 {[%clk 0:00:46]}  Nxe5 {[%clk 0:00:55]} 24. Bb5 {[%clk 0:00:47]}  Bc6 {[%clk 0:00:34]} 25. Bxc6 {[%clk 0:00:46]}  Nxc6 {[%clk 0:00:35]} 26. Nxh6+ {[%clk 0:00:47]}  gxh6 {[%clk 0:00:36]} 27. Qxf6 {[%clk 0:00:44]}  Ne5 {[%clk 0:00:36]} 28. d4 {[%clk 0:00:40]}  cxd4 {[%clk 0:00:35]} 29. exd4 {[%clk 0:00:41]}  Ng6 {[%clk 0:00:35]} 30. Rd3 {[%clk 0:00:30]}  Qg7 {[%clk 0:00:33]} 31. Qxg7+ {[%clk 0:00:21]}  Kxg7 {[%clk 0:00:34]} 32. Nf2 {[%clk 0:00:20]}  Red8 {[%clk 0:00:33]} 33. Rfd1 {[%clk 0:00:19]}  Nf4 {[%clk 0:00:33]} 34. R3d2 {[%clk 0:00:19]}  Rxd4 {[%clk 0:00:30]} 35. Rxd4 {[%clk 0:00:16]}  Rxd4 {[%clk 0:00:31]} 36. Kf1 {[%clk 0:00:13]}  Rxd1+ {[%clk 0:00:28]} 37. Nxd1 {[%clk 0:00:12]}  Kf6 {[%clk 0:00:29]} 38. Nc3 {[%clk 0:00:10]}  Ke5 {[%clk 0:00:30]} 39. g3 {[%clk 0:00:07]}  Nd3 {[%clk 0:00:27]} 40. Ke2 {[%clk 0:00:05]}  Nb4 {[%clk 0:00:25]} 41. a3 {[%clk 0:00:02]}  Nc6 {[%clk 0:00:24]} 42. Ke3 {[%clk 0:00:03]}  Nd4 {[%clk 0:00:23]} 43. b4 {[%clk 0:00:04]}  Nc2+ {[%clk 0:00:23]} 44. Kd3 {[%clk 0:00:03]}  Nxa3 {[%clk 0:00:24]} 45. b5 {[%clk 0:00:04]}  f5 {[%clk 0:00:23]} 46. Ke3 {[%clk 0:00:03]}  Nc4+ {[%clk 0:00:22]} 47. Kd3 {[%clk 0:00:04]}  Nd6 {[%clk 0:00:23]} 48. Ke3 {[%clk 0:00:04]}  h5 {[%clk 0:00:23]} 49. h4 {[%clk 0:00:03]}  Ne4 {[%clk 0:00:21]} 50. Ne2 {[%clk 0:00:03]}  Nf6 {[%clk 0:00:18]} 51. Nf4 {[%clk 0:00:03]}  Ng4+ {[%clk 0:00:18]} 52. Kf3 {[%clk 0:00:03]}  Nf6 {[%clk 0:00:18]} 53. Ng6+ {[%clk 0:00:03]}  Kd5 {[%clk 0:00:18]} 54. Kf4 {[%clk 0:00:03]}  Kc5 {[%clk 0:00:16]} 55. Kxf5 {[%clk 0:00:03]}  Ng8 {[%clk 0:00:16]} 56. Kg5 {[%clk 0:00:03]}  Kxb5 {[%clk 0:00:16]} 57. Kxh5 {[%clk 0:00:04]}  a5 {[%clk 0:00:17]} 58. Kg5 {[%clk 0:00:05]}  a4 {[%clk 0:00:18]} 59. Nf4 {[%clk 0:00:03]}  a3 {[%clk 0:00:18]} 60. Ne2 {[%clk 0:00:04]}  Kc4 {[%clk 0:00:17]} 61. Nc1 {[%clk 0:00:03]}  b5 {[%clk 0:00:18]} 62. h5 {[%clk 0:00:03]}  b4 {[%clk 0:00:18]} 63. h6 {[%clk 0:00:01]}  Nxh6 {[%clk 0:00:18]} 64. Kxh6 {[%clk 0:00:02]}  b3 {[%clk 0:00:18]} 65. g4 {[%clk 0:00:02]}  b2 {[%clk 0:00:19]} 0-1


[Site "https://www.chess.com"]

[Event "Titled Tuesday Blitz March 28 Late 2023"]
[White "Korchmar, Vasiliy"]
[Black "Xie, Bryan"]
[WhiteFideId "24131750"]
[BlackFideId "30941296"]
[WhiteElo "2370"]
[BlackElo "2033"]
[Result "1-0"]
[Round "02"]
[TimeControl "180+2"]
[Date "2023.03.28"]
[WhiteClock "0:00:06"]
[BlackClock "0:00:10"]

1. e4 {[%clk 0:03:00]}  c5 {[%clk 0:02:56]} 2. Nf3 {[%clk 0:03:01]}  e6 {[%clk 0:02:55]} 3. g3 {[%clk 0:03:00]}  Nc6 {[%clk 0:02:54]} 4. Bg2 {[%clk 0:03:00]}  Nf6 {[%clk 0:02:54]} 5. d3 {[%clk 0:02:56]}  d6 {[%clk 0:02:50]} 6. O-O {[%clk 0:02:52]}  Be7 {[%clk 0:02:50]} 7. Re1 {[%clk 0:02:41]}  e5 {[%clk 0:02:44]} 8. Nc3 {[%clk 0:02:40]}  O-O {[%clk 0:02:42]} 9. Bg5 {[%clk 0:02:39]}  Be6 {[%clk 0:02:39]} 10. Bxf6 {[%clk 0:02:22]}  Bxf6 {[%clk 0:02:40]} 11. Nd2 {[%clk 0:02:22]}  Bg5 {[%clk 0:02:31]} 12. Nc4 {[%clk 0:02:19]}  a6 {[%clk 0:02:25]} 13. Rf1 {[%clk 0:02:03]}  b5 {[%clk 0:02:22]} 14. Ne3 {[%clk 0:02:03]}  Bxe3 {[%clk 0:02:06]} 15. fxe3 {[%clk 0:02:04]}  Rc8 {[%clk 0:01:56]} 16. Qh5 {[%clk 0:02:03]}  h6 {[%clk 0:01:42]} 17. Rf2 {[%clk 0:02:02]}  Qg5 {[%clk 0:01:41]} 18. Qe2 {[%clk 0:01:59]}  c4 {[%clk 0:01:37]} 19. Raf1 {[%clk 0:01:51]}  cxd3 {[%clk 0:01:31]} 20. cxd3 {[%clk 0:01:51]}  b4 {[%clk 0:01:06]} 21. Nd5 {[%clk 0:01:51]}  Bxd5 {[%clk 0:01:06]} 22. exd5 {[%clk 0:01:52]}  Ne7 {[%clk 0:01:05]} 23. d4 {[%clk 0:01:38]}  exd4 {[%clk 0:00:52]} 24. exd4 {[%clk 0:01:39]}  Nxd5 {[%clk 0:00:53]} 25. Re1 {[%clk 0:00:22]}  Nc7 {[%clk 0:00:43]} 26. Qc4 {[%clk 0:00:15]}  Ne6 {[%clk 0:00:39]} 27. Qxb4 {[%clk 0:00:14]}  d5 {[%clk 0:00:34]} 28. Qd2 {[%clk 0:00:07]}  Qg4 {[%clk 0:00:27]} 29. Bxd5 {[%clk 0:00:04]}  Qxd4 {[%clk 0:00:15]} 30. Bxe6 {[%clk 0:00:04]}  Qxd2 {[%clk 0:00:14]} 31. Bxf7+ {[%clk 0:00:04]}  Rxf7 {[%clk 0:00:15]} 32. Rxd2 {[%clk 0:00:05]}  Rfc7 {[%clk 0:00:15]} 33. Red1 {[%clk 0:00:05]}  Rc2 {[%clk 0:00:13]} 34. Kf2 {[%clk 0:00:04]}  Kf7 {[%clk 0:00:12]} 35. Ke3 {[%clk 0:00:04]}  Re8+ {[%clk 0:00:13]} 36. Kd3 {[%clk 0:00:04]}  Rc7 {[%clk 0:00:13]} 37. Rf2+ {[%clk 0:00:04]}  Kg6 {[%clk 0:00:13]} 38. Rfd2 {[%clk 0:00:04]}  Rd8+ {[%clk 0:00:13]} 39. Ke2 {[%clk 0:00:04]}  Re7+ {[%clk 0:00:14]} 40. Kf2 {[%clk 0:00:04]}  Rf8+ {[%clk 0:00:14]} 41. Kg2 {[%clk 0:00:05]}  Kg5 {[%clk 0:00:13]} 42. Rd5+ {[%clk 0:00:05]}  Kg6 {[%clk 0:00:12]} 43. Rd6+ {[%clk 0:00:05]}  Rf6 {[%clk 0:00:12]} 44. Rxf6+ {[%clk 0:00:06]}  Kxf6 {[%clk 0:00:12]} 45. Kf3 {[%clk 0:00:06]}  Rc7 {[%clk 0:00:12]} 46. Rd6+ {[%clk 0:00:06]}  Ke5 {[%clk 0:00:13]} 47. Rxa6 {[%clk 0:00:07]}  Rc2 {[%clk 0:00:13]} 48. Rb6 {[%clk 0:00:06]}  Rxh2 {[%clk 0:00:14]} 49. a4 {[%clk 0:00:06]}  Kd5 {[%clk 0:00:14]} 50. a5 {[%clk 0:00:06]}  Kc5 {[%clk 0:00:13]} 51. b4+ {[%clk 0:00:07]}  Kc4 {[%clk 0:00:13]} 52. a6 {[%clk 0:00:07]}  Ra2 {[%clk 0:00:14]} 53. b5 {[%clk 0:00:07]}  Kc5 {[%clk 0:00:14]} 54. Rb7 {[%clk 0:00:08]}  Ra3+ {[%clk 0:00:13]} 55. Kg2 {[%clk 0:00:07]}  g5 {[%clk 0:00:12]} 56. a7 {[%clk 0:00:07]}  g4 {[%clk 0:00:12]} 57. b6 {[%clk 0:00:07]}  Ra2+ {[%clk 0:00:12]} 58. Kf1 {[%clk 0:00:08]}  Kd4 {[%clk 0:00:10]} 59. Rb8 {[%clk 0:00:07]}  Ke3 {[%clk 0:00:10]} 60. Re8+ {[%clk 0:00:06]}  Kd3 {[%clk 0:00:09]} 61. a8=Q {[%clk 0:00:06]}  Rxa8 {[%clk 0:00:09]} 62. Rxa8 {[%clk 0:00:07]}  Ke3 {[%clk 0:00:10]} 63. Ra3+ {[%clk 0:00:06]} 1-0


[Site "https://www.chess.com"]

[Event "Titled Tuesday Blitz March 28 Late 2023"]
[White "Todev, Simeon"]
[Black "Karthik Rajaa"]
[WhiteFideId "2925133"]
[BlackFideId "25035215"]
[WhiteElo "1938"]
[BlackElo "2215"]
[Result "0-1"]
[Round "02"]
[TimeControl "180+2"]
[Date "2023.03.28"]
[WhiteClock "0:00:04"]
[BlackClock "0:00:13"]

1. e4 {[%clk 0:02:57]}  c6 {[%clk 0:02:59]} 2. c4 {[%clk 0:02:57]}  d5 {[%clk 0:02:59]} 3. exd5 {[%clk 0:02:57]}  cxd5 {[%clk 0:03:00]} 4. Nc3 {[%clk 0:02:58]}  d4 {[%clk 0:02:59]} 5. Ne4 {[%clk 0:02:58]}  Nc6 {[%clk 0:02:57]} 6. Nf3 {[%clk 0:02:58]}  e5 {[%clk 0:02:48]} 7. d3 {[%clk 0:02:56]}  Bf5 {[%clk 0:02:25]} 8. Ng3 {[%clk 0:02:56]}  Bg6 {[%clk 0:02:25]} 9. h4 {[%clk 0:02:54]}  h6 {[%clk 0:02:23]} 10. Be2 {[%clk 0:02:53]}  Nf6 {[%clk 0:02:20]} 11. Bd2 {[%clk 0:02:45]}  a5 {[%clk 0:02:20]} 12. Qb3 {[%clk 0:02:43]}  Qc7 {[%clk 0:02:16]} 13. a3 {[%clk 0:02:40]}  Nd7 {[%clk 0:02:16]} 14. O-O-O {[%clk 0:02:39]}  Nc5 {[%clk 0:02:15]} 15. Qc2 {[%clk 0:02:39]}  a4 {[%clk 0:01:48]} 16. Ne1 {[%clk 0:02:32]}  Na5 {[%clk 0:01:31]} 17. Bxa5 {[%clk 0:02:19]}  Qxa5 {[%clk 0:01:28]} 18. Bg4 {[%clk 0:02:08]}  h5 {[%clk 0:01:17]} 19. Bf5 {[%clk 0:02:03]}  Bxf5 {[%clk 0:01:17]} 20. Nxf5 {[%clk 0:02:00]}  g6 {[%clk 0:01:18]} 21. Ng3 {[%clk 0:01:48]}  Bh6+ {[%clk 0:01:18]} 22. Kb1 {[%clk 0:01:45]}  O-O {[%clk 0:01:17]} 23. Qe2 {[%clk 0:01:38]}  Nb3 {[%clk 0:01:11]} 24. Nxh5 {[%clk 0:01:22]}  gxh5 {[%clk 0:01:11]} 25. Qxh5 {[%clk 0:01:21]}  Bg7 {[%clk 0:01:11]} 26. Rh3 {[%clk 0:00:58]}  e4 {[%clk 0:01:00]} 27. Qg4 {[%clk 0:00:54]}  Ra6 {[%clk 0:00:48]} 28. h5 {[%clk 0:00:49]}  Kh8 {[%clk 0:00:40]} 29. Nc2 {[%clk 0:00:17]}  exd3 {[%clk 0:00:35]} 30. Rdxd3 {[%clk 0:00:18]}  Nd2+ {[%clk 0:00:33]} 31. Ka2 {[%clk 0:00:16]}  Nxc4 {[%clk 0:00:28]} 32. h6 {[%clk 0:00:15]}  Bf6 {[%clk 0:00:27]} 33. Rdf3 {[%clk 0:00:04]}  Ne5 {[%clk 0:00:20]} 34. Qe4 {[%clk 0:00:02]}  Nxf3 {[%clk 0:00:19]} 35. Rxf3 {[%clk 0:00:03]}  Rd6 {[%clk 0:00:13]} 36. Nb4 {[%clk 0:00:03]}  Qe5 {[%clk 0:00:12]} 37. Qg4 {[%clk 0:00:03]}  Qe6+ {[%clk 0:00:12]} 38. Qxe6 {[%clk 0:00:02]}  Rxe6 {[%clk 0:00:13]} 39. Nd5 {[%clk 0:00:03]}  Be5 {[%clk 0:00:12]} 40. Rh3 {[%clk 0:00:02]}  Rd6 {[%clk 0:00:12]} 41. f4 {[%clk 0:00:03]}  Rxd5 {[%clk 0:00:12]} 42. fxe5 {[%clk 0:00:04]}  d3 {[%clk 0:00:13]} 0-1


[Site "https://www.chess.com"]